Cogmind - Beta 15 @@@ ROGUE MODE // 2025.07.07 @ 04:53:47 Player: daxter767676 Result: Destroyed by P-70 Sage with Tesla Rifle Performance ------------- Evolutions (6) 3000 Regions Visited (14) 2800 Robots Destroyed (56) 280 Value Destroyed (2584) 2584 Prototype IDs (23) 460 Alien Tech Used (1) 200 Bonus (800) 800 TOTAL SCORE: 10124 Bonus ------- Registered with UFD 300 Met Optimus in HQ 500 Cogmind --------- Core Integrity 0/1150 Matter 71/300 Energy 98/100 System Corruption 4% Temperature Cool (0) Movement Core (50) Location -4/Factory Parts ------- > --- POWER (2) -------- (None) > --- PROPULSION (5) --- (None) > --- UTILITY (9) ------ Advanced Coolant Injector Enhanced Optical Array Targeting Computer Improved Target Analyzer A0-MCA's Component Scanner > --- WEAPON (4) ------- Spear > --- INVENTORY (5) ---- Backup Power I Improved Medium Armor Plating Advanced Drone Bay (2/2) Backup Laser I Peak State ------------ > --- POWER ------------ Micro Fission Core Antimatter Reactor > --- PROPULSION ------- Myomer Leg Myomer Leg Antigrav System Antigrav System Antigrav System > --- UTILITY ---------- Advanced Heat Sink Advanced Heat Sink Advanced Sensor Array Advanced Signal Interpreter Targeting Computer Advanced Melee Analysis Suite Improved Target Analyzer A0-MCA's Component Scanner Improved Trap Extractor > --- WEAPON ----------- Makeshift Hammer Makeshift Hammer Makeshift Hammer Makeshift Hammer > --- INVENTORY -------- Nuclear Pulse Array Field Propulsion Array Energy Well [Rating: 108] Favorites ----------- Power Light Deuterium Engine Engine Light Deuterium Engine Power Core Light Fission Core Reactor Light Antimatter Reactor Propulsion Wheel Treads Medium Treads Leg Enhanced Flexi-carbon Leg Wheel Wheel Hover Unit Gravmag Array Flight Unit Nuclear Pulse Array Utility A0-MCA's Component Scanner Device Advanced Heat Sink Storage Humpback Processor A0-MCA's Component Scanner Hackware Hacking Suite Protection Improved Medium Armor Plating Weapon Heavy Battle Rifle Energy Gun Thermic Laser Energy Cannon Cooled Plasma Cannon Ballistic Gun Heavy Battle Rifle Ballistic Cannon Hardcell Cannon Launcher Micro-nuke Launcher Special Weapon Improved Plasma Cutter Impact Weapon Makeshift Hammer Slashing Weapon Axe Piercing Weapon Spear Special Melee Weapon Dirty Datajack Build | -11 -10 -10 -8 -6 -6 -6 -6 -6 -5 -5 -5 -5 -5 -4 ------- Run | Yrd Mat Sub Scr Fac Was Fac Low Low Fac Was Fac Upp Upp Fac Slots Evolved 12 | . . . . 8 . . . . 2 . . . . 2 Power . | . . . . . . . . . . . . . . . Propulsion 3 | . . . . 1 . . . . 1 . . . . 1 Utility 7 | . . . . 5 . . . . 1 . . . . 1 Weapon 2 | . . . . 2 . . . . . . . . . . Parts Attached 140 | 2 3 . 7 13 1 17 1 10 13 . 15 12 . 46 Power 17 | . . . 1 1 1 . 1 2 2 . 2 . . 7 Engine 6 | . . . 1 . 1 . 1 . . . 1 . . 2 Core 7 | . . . . 1 . . . 2 2 . 1 . . 1 Reactor 4 | . . . . . . . . . . . . . . 4 Propulsion 32 | . 2 . . 2 . 3 . 2 5 . 1 2 . 15 Treads 4 | . . . . . . 1 . 1 . . . 1 . 1 Leg 13 | . . . . . . . . 1 5 . 1 . . 6 Wheel 6 | . 2 . . 2 . 2 . . . . . . . . Hover 5 | . . . . . . . . . . . . 1 . 4 Flight 4 | . . . . . . . . . . . . . . 4 Utility 61 | 2 1 . 4 7 . 9 . 2 4 . 9 6 . 17 Device 26 | 2 . . 1 2 . 4 . 1 1 . 2 4 . 9 Storage 6 | . 1 . 1 1 . 2 . . . . . . . 1 Processor 12 | . . . 2 1 . 2 . . 2 . 1 1 . 3 Hackware 1 | . . . . 1 . . . . . . . . . . Protection 16 | . . . . 2 . 1 . 1 1 . 6 1 . 4 Artifact . | . . . . . . . . . . . . . . . Weapon 30 | . . . 2 3 . 5 . 4 2 . 3 4 . 7 Energy Gun 3 | . . . 1 1 . 1 . . . . . . . . Energy Cannon 5 | . . . 1 . . 1 . 1 1 . . . . 1 Ballistic Gun 9 | . . . . 1 . 3 . 3 1 . . . . 1 Ballistic Cannon 2 | . . . . . . . . . . . . . . 2 Launcher 2 | . . . . . . . . . . . 1 . . 1 Special Weapon 1 | . . . . . . . . . . . . . . 1 Impact Weapon 5 | . . . . . . . . . . . 1 4 . . Slashing Weapon 1 | . . . . 1 . . . . . . . . . . Piercing Weapon 1 | . . . . . . . . . . . . . . 1 Special Melee Weapon 1 | . . . . . . . . . . . 1 . . . Unidentified Prototypes 4 | . . . . . . 3 1 . . . . . . . Corrupted Parts 1 | . . . . . . . . . . . 1 . . . System Corruption 2 | . . . . . . . . . . . 2 . . . Parts Lost 78 | . . . . . 3 10 . 4 6 3 19 1 1 31 Power 8 | . . . . . 1 . . 1 . . 2 . . 4 Propulsion 22 | . . . . . . 3 . 2 . . 3 . 1 13 Utility 29 | . . . . . 2 2 . . 3 . 12 1 . 9 Weapon 19 | . . . . . . 5 . 1 3 3 2 . . 5 Highest Loss Streak 12 | . . . . . 3 9 . 3 3 3 12 1 1 9 To Critical Strikes 3 | . . . . . . . . . . . . . . 3 Average Backups 15 | 6 9 11 13 15 15 7 17 29 26 11 8 3 4 3 Power . | 1 2 3 1 3 2 . . . . . . . . . Propulsion 2 | 4 4 5 3 3 3 1 1 . . 2 1 1 1 1 Utility 6 | . 1 2 6 9 8 4 8 11 9 4 5 1 2 1 Weapon 2 | 1 1 1 1 . . . 2 5 4 1 . . 1 . Tool/Special . | . . . . . . . . . . . . . . . Unused Backups 69 | 8 . . 13 . 12 1 1 1 12 8 9 . . 4 Power 7 | 1 . . 3 . 3 . . . . . . . . . Propulsion 19 | 4 . . 3 . 4 . 1 . 1 2 3 . . 1 Utility 24 | 1 . . 5 . 4 1 . 1 3 3 4 . . 2 Weapon 6 | 2 . . 2 . 1 . . . . . . . . 1 Tool/Special 13 | . . . . . . . . . 8 3 2 . . . Average Slot Usage (%) 84 | . 100 100 94 95 87 79 83 85 77 82 65 52 66 71 Engine 7 | . 14 14 14 1 . 6 9 5 3 . 1 . . . Core 2 | . . . . 4 4 . . 6 6 8 1 . . 2 Treads 2 | . . . . . . 1 6 6 3 . . . 5 1 Leg 3 | . 9 . . . . . . 4 11 19 19 5 5 8 Wheel 12 | . 18 28 28 18 13 9 6 1 . . . . . . Device 9 | . 14 14 10 8 6 12 9 6 6 8 6 6 11 12 Storage 6 | . 14 14 8 6 5 5 6 6 4 5 4 . . . Processor 9 | . . . 4 12 10 8 12 12 11 22 20 14 16 18 Hackware 2 | . . . . 4 6 6 6 6 3 . . . . . Protection 1 | . . . . 10 11 4 . 4 2 5 5 . . 2 Energy Gun 7 | . 28 28 16 6 6 2 . . . . . . . . Energy Cannon 6 | . . . 11 6 6 3 6 6 5 2 . . . . Ballistic Gun 5 | . . . . 5 6 10 12 17 13 8 . . . 1 Impact Weapon 2 | . . . . . . . . . . . 2 19 22 13 Slashing Weapon 1 | . . . . 5 6 4 6 . . . . . . . Peak Build Rating 108 | 9 10 10 29 74 74 67 72 81 96 91 66 62 62 108 Average Rating 51 | 6 9 10 22 66 64 57 68 72 74 70 53 51 62 81 On Entrance 45 | 6 9 10 10 29 74 52 65 72 71 91 51 22 62 58 Naked Turns . | . . . . . . . . . . . . . . . Heaviest Build 254 | 14 49 49 217 75 75 254 243 244 251 71 39 24 17 54 Greatest Support 121 | 20 20 20 20 44 44 44 28 28 121 121 113 20 20 103 Greatest Overweight (x) 10 | . 2 2 10 2 1 8 8 8 8 . 3 3 . 1 Average Overweight (x) 2 | . 1 2 2 1 . 1 3 8 3 . . . . . Largest Inventory Capacity 35 | 8 20 20 35 20 20 35 35 35 35 15 15 5 5 5 Average Capacity 19 | 8 16 20 15 18 18 17 23 35 31 14 13 5 5 5 Most Carried 35 | 8 11 11 25 20 20 13 24 35 35 15 15 5 5 5 Average Carried 15 | 6 9 11 13 17 16 9 17 30 27 10 9 4 5 4 Final Capacity 35 | 8 20 20 20 20 5 15 35 35 15 15 5 5 5 5 Final Carried 30 | 8 11 11 20 20 5 13 24 30 15 6 5 5 5 5 Class Distribution -------------------- 40% | Mutant 16% | Hauler-Tank 11% | Hauler-Gunner 7% | Scavenger-Skirmisher 6% | Derelict-Gladiator 5% | Scavenger-Mutant 3% | Hauler-Mutant Dominant Class ---------------- Mutant | -10/Materials Mutant | -10/Subcaves Mutant | -8/Scraptown Skirmisher | -6/Factory Tank | -6/Waste Scavenger-Skirmisher | -6/Factory Scavenger-Skirmisher | -6/Lower Caves Hauler-Tank | -6/Lower Caves Hauler-Gunner | -5/Factory Scavenger-Mutant | -5/Waste Scavenger-Mutant | -5/Factory Derelict-Mutant | -5/Upper Caves Derelict-Gladiator | -5/Upper Caves Derelict-Gladiator | -4/Factory Resources | -11 -10 -10 -8 -6 -6 -6 -6 -6 -5 -5 -5 -5 -5 -4 ----------- Run | Yrd Mat Sub Scr Fac Was Fac Low Low Fac Was Fac Upp Upp Fac Matter Collected 2412 | 220 30 . 230 . . 414 145 290 372 . 114 158 . 439 Remotely 10 | 10 . . . . . . . . . . . . . . Salvage Created 3067 | 130 . . . . . 456 . 486 271 . 144 119 . 1461 Parts 129 | 7 . . . . . 24 . 24 15 . 8 6 . 45 Haulers Intercepted 4 | . . . . . . 1 . . 1 . . . . 2 Recyclers Shooed . | . . . . . . . . . . . . . . . Parts Field Recycled . | . . . . . . . . . . . . . . . Retrieved Matter . | . . . . . . . . . . . . . . . Parts Self-Destructed 25 | . . 3 . . . . . 20 . . . 2 . . Prevented 5 | . . . . . . . 2 . . . . 3 . . Kills | -11 -10 -10 -8 -6 -6 -6 -6 -6 -5 -5 -5 -5 -5 -4 ------- Run | Yrd Mat Sub Scr Fac Was Fac Low Low Fac Was Fac Upp Upp Fac Combat Hostiles Destroyed 40 | . . . . . . 6 . 10 3 . 2 1 . 18 Melee 7 | . . . . . . . . . . . 1 . . 6 Guns 13 | . . . . . . 4 . 4 3 . . . . 2 Cannons 7 | . . . . . . 2 . 5 . . . . . . AOE 2 | . . . . . . . . . . . . . . 2 Classes Destroyed 14 | 2 . . . . . 3 . 2 . . 2 1 . 4 Worker 2 | . . . . . . . . . . . . . . 2 Builder 1 | . . . . . . . . . . . . . . 1 Tunneler 2 | 2 . . . . . . . . . . . . . . Hauler 4 | . . . . . . 1 . . 1 . . . . 2 Recycler 4 | 1 . . . . . 1 . . . . . . . 2 Minesweeper 1 | . . . . . . . . . . . . 1 . . Operator 1 | . . . . . . . . . . . 1 . . . Watcher 1 | . . . . . . . . . . . . . . 1 Swarmer 11 | . . . . . . 4 . 4 . . . . . 3 Grunt 5 | . . . . . . . . 3 . . 1 . . 1 Sentry 6 | . . . . . . . . . . . 1 1 . 4 Hunter 12 | . . . . . . 2 . 2 3 . . . . 5 Programmer 5 | . . . . . . . . . . . . . . 5 Behemoth 1 | . . . . . . . . 1 . . . . . . Best Kill Streak 7 | 2 . . . . . 4 . 4 2 . 2 1 . 7 Combat Bots Only 4 | . . . . . . 4 . 4 2 . 2 1 . 3 Max Kills in Single Turn 2 | 1 . . . . . 2 . 1 1 . 1 1 . 2 Gunslinging . | . . . . . . . . . . . . . . . Exploded 1 | . . . . . . . . . . . . . . 1 Melee 1 | . . . . . . . . . . . 1 . . 1 Uniques/NPCs Destroyed . | . . . . . . . . . . . . . . . Combat | -11 -10 -10 -8 -6 -6 -6 -6 -6 -5 -5 -5 -5 -5 -4 -------- Run | Yrd Mat Sub Scr Fac Was Fac Low Low Fac Was Fac Upp Upp Fac Hostile Shots Fired 966 | . . . . . 3 146 . 151 75 3 142 30 2 414 Missed 337 | . . . . . . 30 . 46 23 . 44 17 . 177 Hits 629 | . . . . . 3 116 . 105 52 3 98 13 2 237 Melee 6 | . . . . . 3 . . . . 3 . . . . Projectile 623 | . . . . . . 116 . 105 52 . 98 13 2 237 AOE 4 | . . . . . . . . . . . 1 . . 3 Critical Strikes 28 | . . . . . . 3 . 2 1 2 10 1 . 9 Actively Blocked 4 | . . . . . . . . . . 1 3 . . . Damage Taken 11366 | . . . . . 117 1614 . 1501 761 140 2377 97 38 4721 Core 2444 | . . . . . 38 294 . 219 57 52 590 32 . 1162 Absorbed by Shields . | . . . . . . . . . . . . . . . Redirected to Shielding 669 | . . . . . 29 32 . . 51 23 534 . . . Regen/Repaired (Parts) 10 | . . . . . . . 10 . . . . . . . Core Remaining (%) 65 | 100 . . 100 . . . . 35 . . . . 26 . Volleys Fired 122 | 12 . . . . . 18 3 28 15 . 1 . . 45 Largest 4 | 2 . . . . . 3 1 4 4 . 1 . . 2 Hottest 261 | 90 . . . . . 123 105 261 134 . 46 . . 88 Shots Fired 226 | 24 . . . . . 31 3 64 55 . 1 . . 48 Gun 153 | 24 . . . . . 26 1 37 40 . . . . 25 Cannon 67 | . . . . . . 5 2 27 15 . . . . 18 Launcher 6 | . . . . . . . . . . . 1 . . 5 Special . | . . . . . . . . . . . . . . . Kinetic 128 | . . . . . . 17 1 37 40 . . . . 33 Thermal 73 | 24 . . . . . 5 2 27 15 . . . . . Explosive 5 | . . . . . . . . . . . . . . 5 Electromagnetic 20 | . . . . . . 9 . . . . 1 . . 10 Robot Hit Streak 7 | 7 . . . . . 7 . 5 6 . 2 . . 6 Robot Miss Streak 6 | 2 . . . . . 4 . 2 2 . . . . 6 Penetration Max . | . . . . . . . . . . . . . . . Secondary Targets . | . . . . . . . . . . . . . . . Shots Hit Robots 189 | 15 . . . . . 19 . 30 36 . 18 3 . 68 Core Hits 75 | 4 . . . . . 11 . 14 14 . 7 2 . 23 Critical Kills 4 | . . . . . . . . . . . . . . 4 Critical Parts Destroyed 7 | . . . . . . . . . . . 1 1 . 5 Critical Strikes 13 | . . . . . . . . . . . 2 1 . 10 Destroy 1 | . . . . . . . . . . . . . . 1 Blast 1 | . . . . . . . . . . . . . . 1 Smash 11 | . . . . . . . . . . . 2 1 . 8 Melee Attacks 115 | . . . . . . 4 . 2 . . 17 4 . 88 Impact 100 | . . . . . . . . . . . 10 4 . 86 Slashing 6 | . . . . . . 4 . 2 . . . . . . Piercing 9 | . . . . . . . . . . . 7 . . 2 Sneak Attacks 11 | . . . . . . 2 . 1 . . 2 1 . 5 Combat Hostiles 3 | . . . . . . . . 1 . . 2 . . . Follow-up Attacks 10 | . . . . . . . . . . . . 1 . 9 Damage Inflicted 7094 | 184 . . . . . 535 . 1300 637 . 534 184 . 3720 Guns 1685 | 184 . . . . . 294 . 357 411 . . . . 439 Cannons 1432 | . . . . . . 81 . 863 226 . . . . 262 Explosions 679 | . . . . . . . . . . . 26 . . 653 Melee 3292 | . . . . . . 160 . 80 . . 502 184 . 2366 Ramming 6 | . . . . . . . . . . . 6 . . . Kinetic 1483 | . . . . . . 132 . 357 411 . . . . 583 Thermal 1354 | 184 . . . . . 81 . 863 226 . . . . . Explosive 653 | . . . . . . . . . . . . . . 653 Electromagnetic 306 | . . . . . . 162 . . . . 26 . . 118 Impact 2965 | . . . . . . . . . . . 489 184 . 2292 Slashing 240 | . . . . . . 160 . 80 . . . . . . Piercing 87 | . . . . . . . . . . . 13 . . 74 Highest Corruption 16 | . 1 1 . . 13 16 16 16 . . 3 3 3 4 Average Corruption 10 | . 1 1 . . 6 14 16 16 . . 1 3 3 2 Corruption Purged . | . . . . . . . . . . . . . . . Corruption Blocked . | . . . . . . . . . . . . . . . Effects 201 | . 1 2 . . 4 20 56 97 . . 2 6 1 12 Message Errors 70 | . . 1 . . 2 6 20 32 . . . 1 1 7 Matter Fused 37 | . . . . . . 2 10 22 . . 1 1 . 1 Heat Flow Errors 18 | . 1 . . . . 2 3 10 . . . 1 . 1 Energy Discharges 22 | . . 1 . . . 1 9 9 . . . 2 . . Parts Fused 2 | . . . . . . 1 1 . . . . . . . Data Loss (minor) 22 | . . . . . . 4 9 7 . . 1 . . 1 Data Loss (major) 16 | . . . . . 2 3 1 9 . . . 1 . . Misfires 7 | . . . . . . . 1 5 . . . . . 1 Alerts 3 | . . . . . . . 1 2 . . . . . . Weapon Failures 4 | . . . . . . 1 1 1 . . . . . 1 Overload Shots 18 | . . . . . . . 1 17 . . . . . . Overflow Damage 849 | . . . . . . . . . . . 48 32 . 769 Projectiles 21 | . . . . . . . . . . . . . . 21 Explosions 9 | . . . . . . . . . . . . . . 9 Melee 819 | . . . . . . . . . . . 48 32 . 739 Knockbacks 14 | . . . . . . . . . . . 2 . . 12 Impact 12 | . . . . . . . . . . . 1 . . 11 Kinetic . | . . . . . . . . . . . . . . . Secondary 2 | . . . . . . . . . . . 1 . . 1 Self-Inflicted Damage 144 | . . . . . . . . . . . 6 . . 138 Shots 4 | . . . . . . . . . . . 1 . . 3 Rammed 1 | . . . . . . . . . . . 1 . . . Targets Rammed 1 | . . . . . . . . . . . 1 . . . Kicked . | . . . . . . . . . . . . . . . Crushed . | . . . . . . . . . . . . . . . Highest Temperature 388 | 160 82 . . . . 385 266 388 6 . 10 228 . 206 Average Temperature 106 | 72 42 . . . . 159 113 117 3 . 10 128 . 55 Received Heat Transfer 999 | . . . . . . . . 180 . . 585 9 18 207 Effects 15 | . . . . . . 9 1 5 . . . . . . Energy Bleed 6 | . . . . . . 3 1 2 . . . . . . Interference 9 | . . . . . . 6 . 3 . . . . . . Siege Activations . | . . . . . . . . . . . . . . . Martial Activations . | . . . . . . . . . . . . . . . Shielding Activations . | . . . . . . . . . . . . . . . Robots Disrupted . | . . . . . . . . . . . . . . . Combat Hostiles . | . . . . . . . . . . . . . . . Robots Corrupted 12 | . . . . . . . . . . . 1 1 . 10 Combat Hostiles 10 | . . . . . . . . . . . 1 1 . 8 Parts Fried 15 | . . . . . . 2 . . . . 1 . . 12 Impact Corruptions 29 | . . . . . . . . . . . 2 1 . 26 Robots Melted 1 | . . . . . . . . 1 . . . . . . Combat Hostiles 1 | . . . . . . . . 1 . . . . . . Parts Melted 4 | 1 . . . . . . . 3 . . . . . . Heat Transferred 2061 | 520 . . . . . 111 . 1080 350 . . . . . Parts Sabotaged . | . . . . . . . . . . . . . . . Parts Stolen . | . . . . . . . . . . . . . . . Parts Stripped . | . . . . . . . . . . . . . . . Power Chain Reactions . | . . . . . . . . . . . . . . . Alert | -11 -10 -10 -8 -6 -6 -6 -6 -6 -5 -5 -5 -5 -5 -4 ------- Run | Yrd Mat Sub Scr Fac Was Fac Low Low Fac Was Fac Upp Upp Fac Maximum Alert Level 1 | . . . . . . . . . . . . . . 1 Low Security (%) 90 | 100 100 . . 100 100 100 . . 100 100 100 . . 77 Level 1 9 | . . . . . . . . . . . . . . 22 Level 2 . | . . . . . . . . . . . . . . . Level 3 . | . . . . . . . . . . . . . . . Level 4 . | . . . . . . . . . . . . . . . Level 5 . | . . . . . . . . . . . . . . . High Security . | . . . . . . . . . . . . . . . Max Security . | . . . . . . . . . . . . . . . Peak Influence 323 | 5 5 . . . . 71 . . 47 . 30 . . 323 Initial 47 | . . . . . . . . . 47 . . . . . Average 46 | 1 . . . . . 16 . . 9 . 1 . . 99 Influence Increases 1839 | 15 9 . . . . 213 . 240 105 . 55 115 . 1087 Destroy 0b10 Robot/C 800 | . . . . . . 120 . 200 60 . 40 20 . 360 Destroy 0b10 Robot/NC 80 | 15 . . . . . 10 . . 5 . 5 5 . 40 Destroy Leader 190 | . . . . . . 22 . 40 22 . 10 . . 96 Successful Hack 32 | . 9 . . . . . . . . . . . . 23 Select Force Hacks 30 | . . . . . . 30 . . . . . . . . Disable Machine 210 | . . . . . . 30 . . . . . . . 180 Destroy Structure 197 | . . . . . . 1 . . 18 . . . . 178 Partial Spotted 15 | . . . . . . . . . . . . . . 15 Lose Combat Pursuer 285 | . . . . . . . . . . . . 90 . 195 Influence Decreases 1556 | 15 9 . . . . 213 . 164 181 . 55 111 4 804 Entered New Map 31 | . . . . . . . . . 29 . . . 2 . Time Decay 952 | 15 9 . . . . 133 . 154 138 . 15 101 . 387 Lost Part 456 | . . . . . . 80 . 10 14 . 40 10 2 300 Purge Threat 117 | . . . . . . . . . . . . . . 117 Squads Dispatched 14 | . 1 . . . . 2 . . 1 . 1 . . 9 Investigation 3 | . 1 . . . . 1 . . . . . . . 1 Extermination 5 | . . . . . . 1 . . . . . . . 4 Reinforcement 6 | . . . . . . . . . 1 . 1 . . 4 Assault . | . . . . . . . . . . . . . . . Garrison . | . . . . . . . . . . . . . . . Intercept . | . . . . . . . . . . . . . . . Searches Triggered . | . . . . . . . . . . . . . . . Construction Impeded . | . . . . . . . . . . . . . . . Haulers Reinforced 2 | . . . . . . . . . . . . . . 2 Active Scanning Responses . | . . . . . . . . . . . . . . . Cargo Convoy Interrupts . | . . . . . . . . . . . . . . . Stealth | -11 -10 -10 -8 -6 -6 -6 -6 -6 -5 -5 -5 -5 -5 -4 --------- Run | Yrd Mat Sub Scr Fac Was Fac Low Low Fac Was Fac Upp Upp Fac Distress Signals 2 | . . . . . . . . . . . . . . 2 Communications Jammed . | . . . . . . . . . . . . . . . Distress Signals . | . . . . . . . . . . . . . . . Times Spotted 102 | . 4 . . . 6 7 . 10 5 6 10 7 3 44 Peak Tracking Total 10 | . 4 . . . 4 5 . 4 2 6 6 5 3 10 Tactical Retreats 9 | . . . . . 1 . . . . . . 2 . 6 Traps | -11 -10 -10 -8 -6 -6 -6 -6 -6 -5 -5 -5 -5 -5 -4 ------- Run | Yrd Mat Sub Scr Fac Was Fac Low Low Fac Was Fac Upp Upp Fac Traps Triggered 12 | . . . . 1 . 3 . . 1 . 1 . . 6 Indirectly . | . . . . . . . . . . . . . . . Trap Hack Attempts . | . . . . . . . . . . . . . . . Triggered . | . . . . . . . . . . . . . . . Disarmed . | . . . . . . . . . . . . . . . Reprogrammed . | . . . . . . . . . . . . . . . Reused . | . . . . . . . . . . . . . . . Traps Extracted . | . . . . . . . . . . . . . . . Installed . | . . . . . . . . . . . . . . . Triggered . | . . . . . . . . . . . . . . . Machines | -11 -10 -10 -8 -6 -6 -6 -6 -6 -5 -5 -5 -5 -5 -4 ---------- Run | Yrd Mat Sub Scr Fac Was Fac Low Low Fac Was Fac Upp Upp Fac Machines Disabled 14 | . . . . . . 2 . . . . . . . 12 Max in Single Turn 4 | . . . . . . 1 . . . . . . . 4 Machines Repaired . | . . . . . . . . . . . . . . . Machines Dismantled 1 | . . . . . . . . . . . . . . 1 Machines Sabotaged . | . . . . . . . . . . . . . . . Overloaded Fab Kills . | . . . . . . . . . . . . . . . Hacking | -11 -10 -10 -8 -6 -6 -6 -6 -6 -5 -5 -5 -5 -5 -4 --------- Run | Yrd Mat Sub Scr Fac Was Fac Low Low Fac Was Fac Upp Upp Fac Machines Accessed 19 | . 3 . 4 1 . 2 1 1 . . . 1 . 6 Terminals 7 | . 3 . . . . 1 . . . . . . . 3 Fabricators 1 | . . . . . . . . . . . . . . 1 Repair Stations 1 | . . . . . . . . . . . . . . 1 Recycling Units . | . . . . . . . . . . . . . . . Scanalyzers 3 | . . . . 1 . 1 . . . . . . . 1 Garrison Access . | . . . . . . . . . . . . . . . Total Hacks 48 | . 11 . 12 2 . 3 1 1 . . . 1 . 17 Successful 26 | . 6 . 12 . . 1 1 1 . . . 1 . 4 Failed 22 | . 5 . . 2 . 2 . . . . . . . 13 Catastrophic 3 | . . . . . . . . . . . . . . 3 Database Lockouts . | . . . . . . . . . . . . . . . Manual 14 | . 9 . 1 . . 1 . . . . . . . 3 Terminals 23 | . 11 . . . . 2 . . . . . . . 10 Fabricators 3 | . . . . . . . . . . . . . . 3 Repair Stations 1 | . . . . . . . . . . . . . . 1 Recycling Units . | . . . . . . . . . . . . . . . Scanalyzers 6 | . . . . 2 . 1 . . . . . . . 3 Garrison Access . | . . . . . . . . . . . . . . . Terminal Hacks 18 | . 1 . 12 . . . 1 1 . . . 1 . 2 Record 7 | . . . 7 . . . . . . . . . . . Robot Analysis 4 | . . . 4 . . . . . . . . . . . Prototype ID Bank 1 | . . . . . . . . . . . . . . 1 Open Door 3 | . . . . . . . 1 1 . . . 1 . . Unreport Threat 1 | . . . . . . . . . . . . . . 1 Locate Traps 1 | . 1 . . . . . . . . . . . . . Proto ID Catalog 1 | . . . 1 . . . . . . . . . . . Fabricator Hacks . | . . . . . . . . . . . . . . . Repair Station Hacks 1 | . . . . . . . . . . . . . . 1 Refit 1 | . . . . . . . . . . . . . . 1 Recycling Unit Hacks . | . . . . . . . . . . . . . . . Scanalyzer 1 | . . . . . . . . . . . . . . 1 Insert Component 1 | . . . . . . . . . . . . . . 1 Garrison Access Hacks . | . . . . . . . . . . . . . . . Unauthorized Hacks 6 | . 5 . . . . 1 . . . . . . . . Terminals 5 | . 5 . . . . . . . . . . . . . Assimilate 1 | . 1 . . . . . . . . . . . . . Botnet 1 | . 1 . . . . . . . . . . . . . Skim 3 | . 3 . . . . . . . . . . . . . Fabricators . | . . . . . . . . . . . . . . . Repair Stations . | . . . . . . . . . . . . . . . Recycling Units . | . . . . . . . . . . . . . . . Scanalyzers 1 | . . . . . . 1 . . . . . . . . Extract 1 | . . . . . . 1 . . . . . . . . Garrison Access . | . . . . . . . . . . . . . . . Data Cores Recovered 1 | . 1 . . . . . . . . . . . . . Used . | . . . . . . . . . . . . . . . Hacking Detections 10 | . 3 . . 1 . 1 . . . . . . . 5 Full Trace Events 2 | . 1 . . . . . . . . . . . . 1 Feedback Events 1 | . 1 . . . . . . . . . . . . . Corruption 1 | . 1 . . . . . . . . . . . . . Feedback Blocked . | . . . . . . . . . . . . . . . Robot Schematics Acquired . | . . . . . . . . . . . . . . . Robots Built . | . . . . . . . . . . . . . . . Authchips . | . . . . . . . . . . . . . . . Time . | . . . . . . . . . . . . . . . Total Robot Build Rating . | . . . . . . . . . . . . . . . Part Schematics Acquired 10 | . . . . . . 10 . . . . . . . . Parts Built . | . . . . . . . . . . . . . . . Authchips . | . . . . . . . . . . . . . . . Time . | . . . . . . . . . . . . . . . Total Part Build Rating . | . . . . . . . . . . . . . . . Parts Repaired . | . . . . . . . . . . . . . . . Time . | . . . . . . . . . . . . . . . Parts Recycled . | . . . . . . . . . . . . . . . Recycled Matter . | . . . . . . . . . . . . . . . Retrieved Matter . | . . . . . . . . . . . . . . . Retrieved Components . | . . . . . . . . . . . . . . . Parts Scanalyzed 1 | . . . . . . . . . . . . . . 1 Part Schematics Acquired . | . . . . . . . . . . . . . . . Parts Damaged . | . . . . . . . . . . . . . . . Bothacking | -11 -10 -10 -8 -6 -6 -6 -6 -6 -5 -5 -5 -5 -5 -4 ------------ Run | Yrd Mat Sub Scr Fac Was Fac Low Low Fac Was Fac Upp Upp Fac Used RIF Installer . | . . . . . . . . . . . . . . . Robots Hacked . | . . . . . . . . . . . . . . . Non-combat . | . . . . . . . . . . . . . . . Combat . | . . . . . . . . . . . . . . . Robot Hacks Applied . | . . . . . . . . . . . . . . . Relay Couplers Released . | . . . . . . . . . . . . . . . Fabnet Peak Effective % . | . . . . . . . . . . . . . . . Robots Rewired . | . . . . . . . . . . . . . . . Allies Hacked . | . . . . . . . . . . . . . . . Hacks Repelled . | . . . . . . . . . . . . . . . Allies | -11 -10 -10 -8 -6 -6 -6 -6 -6 -5 -5 -5 -5 -5 -4 -------- Run | Yrd Mat Sub Scr Fac Was Fac Low Low Fac Was Fac Upp Upp Fac Total Allies 2 | . . . . . 1 . . . . . 1 . . . Largest Group 1 | . . . . . 1 . . . . . 1 . . . Highest-Rated Group 43 | . . . . . 31 . . . . . 43 . . . Highest-Rated Ally 43 | . . . . . 31 . . . . . 43 . . . Total Orders . | . . . . . . . . . . . . . . . Ally Attacks 15 | . . . . . 15 . . . . . . . . . Total Damage 270 | . . . . . 270 . . . . . . . . . Kills . | . . . . . . . . . . . . . . . Allies Corrupted . | . . . . . . . . . . . . . . . Allies Melted . | . . . . . . . . . . . . . . . Intel | -11 -10 -10 -8 -6 -6 -6 -6 -6 -5 -5 -5 -5 -5 -4 ------- Run | Yrd Mat Sub Scr Fac Was Fac Low Low Fac Was Fac Upp Upp Fac Active Infowar (turns) 5277 | 14 111 260 3171 255 17 275 670 . . . 205 20 . 279 Optics 10 | . . . . . . . . . . . . . . 10 Sensors 1214 | . . . . . . 275 670 . . . . . . 269 Terrain 3971 | 14 111 260 3171 255 17 . . . . . 143 . . . Structural 202 | . . . . . . . . . . . 202 . . . Jamming 20 | . . . . . . . . . . . . 20 . . Robot Analysis Total 4 | . . . 4 . . . . . . . . . . . Derelict Logs Recovered 3 | . . . . . . . 2 . . . . 1 . . Drone Launches . | . . . . . . . . . . . . . . . Drone Recoveries . | . . . . . . . . . . . . . . . Exploration | -11 -10 -10 -8 -6 -6 -6 -6 -6 -5 -5 -5 -5 -5 -4 ------------- Run | Yrd Mat Sub Scr Fac Was Fac Low Low Fac Was Fac Upp Upp Fac Turns Passed 12258 | 76 111 260 4347 255 119 480 1217 2156 736 107 320 443 19 1612 Spaces Moved 6297 | 27 64 22 2117 205 96 288 742 413 174 88 211 551 22 1277 Core 100 | . . . . . . . . . . . 44 43 . 13 Treads 228 | . . . . . . . . 192 36 . . . . . Legs 1089 | 27 17 . . . . . . . 138 88 167 . . 652 Wheels 3738 | . 47 22 2117 205 96 288 742 221 . . . . . . Hover 615 | . . . . . . . . . . . . 508 22 85 Flight 527 | . . . . . . . . . . . . . . 527 Fastest Speed 37 | 120 110 110 80 101 100 100 115 220 120 120 50 50 70 37 Average Speed 142 | 120 112 110 116 110 113 128 158 489 370 120 114 70 89 84 Slowest Speed 800 | 120 120 110 230 116 115 220 220 800 800 120 200 200 90 190 Overloaded Moves . | . . . . . . . . . . . . . . . Propulsion Burnouts . | . . . . . . . . . . . . . . . Robots Hopped 16 | . . . . . . . . . . . . . . 16 Potential Cave-ins . | . . . . . . . . . . . . . . . Cave-ins Triggered . | . . . . . . . . . . . . . . . Exploration Rate (%) 36 | 4 16 2 93 4 91 7 77 56 6 75 7 65 6 32 Regions Visited 14 Branch Regions 6 Pre-discovered Areas 2 | . . . 1 . . . . . . . . 1 . . Known Exits Taken 3 | . . . . . . 1 1 . . . . . 1 . Unknown Exits Taken 7 | 1 1 1 1 . . . . 1 . . 1 1 . . Scrap Searched 11 | . . . 6 . . . 1 2 . . . 2 . . Spaces Dug 12 | . . . . . . . 2 . . . . . . 10 Terrain Destroyed 118 | . . . . . . . 2 13 8 . . . . 95 Melee 10 | . . . . . . . . . . . . . . 10 Projectile 31 | . . . . . . . 2 13 8 . . . . 8 AOE 77 | . . . . . . . . . . . . . . 77 Terrain Rammed . | . . . . . . . . . . . . . . . Walls Destroyed . | . . . . . . . . . . . . . . . Machines Disabled . | . . . . . . . . . . . . . . . Actions | -11 -10 -10 -8 -6 -6 -6 -6 -6 -5 -5 -5 -5 -5 -4 --------- Run | Yrd Mat Sub Scr Fac Was Fac Low Low Fac Was Fac Upp Upp Fac Total 9258 | 47 102 257 3994 235 104 365 779 503 229 89 270 600 21 1663 Wait 2330 | . 32 236 1788 . . 12 . 37 . . 8 31 . 186 Move 6255 | 26 63 21 2116 205 95 287 741 412 174 87 210 550 21 1247 Hop 14 | . . . . . . . . . . . . . . 14 Pick Up 155 | 4 3 . 52 9 4 12 24 8 17 1 13 3 . 5 Fast Attach 101 | 2 . . 6 2 3 13 2 2 6 1 9 9 . 46 Attach 37 | . . . . 7 . 6 2 5 5 . 6 2 . 4 Detach 11 | . . . . . . 5 . 1 1 . . . . 4 Swap 30 | . 3 . 3 6 1 2 . 5 5 . . 1 . 4 Drop 84 | 3 1 . 17 6 1 6 4 3 6 . 5 2 . 30 Fire 122 | 12 . . . . . 18 3 28 15 . 1 . . 45 Melee 92 | . . . . . . 4 . 2 . . 17 2 . 67 Ram 1 | . . . . . . . . . . . 1 . . . Kick . | . . . . . . . . . . . . . . . Crush . | . . . . . . . . . . . . . . . Escape Stasis 6 | . . . . . . . . . . . . . . 6 Rewire 15 | . . . 12 . . . 3 . . . . . . . Trap . | . . . . . . . . . . . . . . . Miscellaneous 5 | . . . . . . . . . . . . . . 5 Route ------- -11/Scrapyard -10/Materials -10/Subcaves -8/Scraptown (discovered 2 exits: *Fac x2) -6/Factory -6/Waste -6/Factory -6/Lower Caves -6/Lower Caves -5/Factory (discovered 3 exits: Fac / Ext x2) -5/Waste -5/Factory -5/Upper Caves -5/Upper Caves -4/Factory (discovered 1 exit: [*Res]) History --------- Turn | Location | Event 16 | -11/Scrapyard | Discovered new exit (range 3) 77 | -11/Scrapyard | Entered Materials 78 | -10/Materials | Met a group of wandering Federalists 183 | -10/Materials | Discovered new exit (range 5) 188 | -10/Materials | Entered Subcaves 188 | -10/Subcaves | Accompanied by 3 allies 189 | -10/Subcaves | Continued accompanying wandering Federalists (3) 300 | -10/Subcaves | Build established: Mutant 442 | -10/Subcaves | Wandering Federalist uncovered a shortcut to Scraptown 448 | -10/Subcaves | Entered Scraptown 448 | -8/Scraptown | System corruption cleaned by C-Scrubber 472 | -8/Scraptown | Heard Great Nut preacher, LISTEN AND RECITE! 651 | -8/Scraptown | Learned location of Extension (-5) 853 | -8/Scraptown | Discovered new exit (range 7) 1005 | -8/Scraptown | Visited Awakened 1042 | -8/Scraptown | Visited Cyclists 1068 | -8/Scraptown | Visited The Evicted 1172 | -8/Scraptown | Visited Science Testing Area 1394 | -8/Scraptown | Visited Shadow of the Wyrm 1417 | -8/Scraptown | Visited IN-MT5's Study 1493 | -8/Scraptown | Visited UFD Registry 1495 | -8/Scraptown | Registered with UFD as "Gunrigger" 1554 | -8/Scraptown | Visited TADAMA 1624 | -8/Scraptown | Entered Cyclist Reading Room 1692 | -8/Scraptown | Visited LU-1G1's Boring Crew 1759 | -8/Scraptown | Visited Science Guys 1836 | -8/Scraptown | Visited Infowarlord's Domain 1844 | -8/Scraptown | Found Exp. Terrain Scanner 2189 | -8/Scraptown | Build established: Hauler-Mutant 2560 | -8/Scraptown | Build established: Mutant 4084 | -8/Scraptown | Visited Scrapoid Pod Storage 4109 | -8/Scraptown | Visited Scrapoid Research Area 4170 | -8/Scraptown | Visited Analyses Database 4200 | -8/Scraptown | Visited A0-MCA Data Center 4206 | -8/Scraptown | Given a C rating by A0-MCA 4211 | -8/Scraptown | Found A0-MCA's Component Scanner 4236 | -8/Scraptown | Visited Cartography Club 4264 | -8/Scraptown | Found Surveybot 17 Chip 4327 | -8/Scraptown | Visited Junk Repository 4413 | -8/Scraptown | Found Scrap Suit 4571 | -8/Scraptown | Discovered new exit (range 5) 4720 | -8/Scraptown | Met Optimus 4720 | -8/Scraptown | Accepted into 0bPrime 4793 | -8/Scraptown | Civil war broke out across Scraptown 4795 | -8/Scraptown | Entered Factory 4795 | -6/Factory | Evolved 8 slots: Propulsion x1, Utility x5, Weapon x2 5050 | -6/Factory | Sucked down chute 5050 | -6/Factory | Entered Waste 5051 | -6/Waste | Met a frightened Derelict 5055 | -6/Waste | Spotted C-40 Crusher 5058 | -6/Waste | Spotted C-40 Crusher 5065 | -6/Waste | EMP discharged 5106 | -6/Waste | Spotted C-40 Crusher 5113 | -6/Waste | Spotted C-40 Crusher 5116 | -6/Waste | Spotted C-40 Crusher 5125 | -6/Waste | Crushed by Compactor (1 part destroyed, 1 dropped) 5132 | -6/Waste | Spotted C-40 Crusher 5143 | -6/Waste | Discovered new exit (range 14) 5144 | -6/Waste | Crushed by Compactor (1 part destroyed, 1 dropped) 5155 | -6/Waste | Crushed by Compactor (1 part destroyed, 1 dropped) 5165 | -6/Waste | EMP discharged 5165 | -6/Waste | System corruption reached 10% 5169 | -6/Waste | Entered Factory 5186 | -6/Factory | Lost 3 parts (1p2u) 5432 | -6/Factory | Lost 9 parts (3n2u4w) 5551 | -6/Factory | Found Prototype Processor 5551 | -6/Factory | Identified Exp. Targeting Computer 5602 | -6/Factory | Allied Derelicts emerged from ambush trap array 5628 | -6/Factory | Discovered new exit (range 15) 5648 | -6/Factory | Identified exit to Lower Caves 5649 | -6/Factory | Entered Lower Caves 5717 | -6/Lower Caves | Build established: Scavenger-Skirmisher 5820 | -6/Lower Caves | Learned 12 Factory zone layouts 6110 | -6/Lower Caves | Learned Factory security intel 6113 | -6/Lower Caves | Found Alien Artifact 6113 | -6/Lower Caves | Identified Core Expander 6113 | -6/Lower Caves | Installed Core Expander, added new Power slot 6222 | -6/Lower Caves | Discovered new exit (range 5) 6226 | -6/Lower Caves | Identified exit to Lower Caves 6610 | -6/Lower Caves | Build established: Hauler-Gunner 6866 | -6/Lower Caves | Entered another Lower Caves area 7261 | -6/Lower Caves | Spotted B-75 Beast 7298 | -6/Lower Caves | Core integrity fell below 50% 7467 | -6/Lower Caves | Destroyed B-75 Beast 7493 | -6/Lower Caves | Lost 3 parts (1p2n) 7740 | -6/Lower Caves | Build established: Hauler-Tank 8950 | -6/Lower Caves | Discovered new exit (range 7) 9022 | -6/Lower Caves | Entered Factory 9022 | -5/Factory | Evolved 2 slots: Propulsion x1, Utility x1 9023 | -5/Factory | Identified exit to Extension 9023 | -5/Factory | Identified exit to Factory 9313 | -5/Factory | Lost 3 parts (1u2w) 9657 | -5/Factory | Lost 3 parts (2u1w) 9758 | -5/Factory | Sucked down chute 9758 | -5/Factory | Entered Waste 9781 | -5/Waste | Spotted C-40 Crusher 9792 | -5/Waste | Spotted C-40 Crusher 9801 | -5/Waste | Crushed by Compactor (1 part destroyed, 2 dropped) 9805 | -5/Waste | Spotted C-40 Crusher 9815 | -5/Waste | Crushed by Compactor (1 part destroyed, 1 dropped) 9819 | -5/Waste | Crushed by Compactor (1 part destroyed, 2 dropped) 9825 | -5/Waste | Spotted C-40 Crusher 9833 | -5/Waste | Spotted C-40 Crusher 9835 | -5/Waste | Spotted C-40 Crusher 9847 | -5/Waste | Discovered new exit (range 16) 9850 | -5/Waste | Lost 3 parts (3w) 9865 | -5/Waste | Entered Factory 9963 | -5/Factory | Lost 4 parts (1p3u) 10085 | -5/Factory | Lost 3 parts (1p2u) 10095 | -5/Factory | Build established: Scavenger-Mutant 10148 | -5/Factory | Core integrity fell below 50% 10180 | -5/Factory | Discovered new exit (range 7) 10185 | -5/Factory | Entered Upper Caves 10200 | -5/Upper Caves | Learned location of Armory (-3) 10210 | -5/Upper Caves | Lost 12 parts (3n7u2w) 10275 | -5/Upper Caves | Spotted B-75 Beast 10540 | -5/Upper Caves | Encountered a Warlord checkpoint 10571 | -5/Upper Caves | Discovered new exit (range 15) 10588 | -5/Upper Caves | Attracted the attention of an 0b10 checkpoint 10628 | -5/Upper Caves | Entered another Upper Caves area 10639 | -5/Upper Caves | Discovered exit to Factory (range 10) 10647 | -5/Upper Caves | Entered Factory 10647 | -4/Factory | Evolved 2 slots: Propulsion x1, Utility x1 10753 | -4/Factory | Build established: Derelict-Gladiator 11183 | -4/Factory | Spotted B-86 Titan 11311 | -4/Factory | Lost 3 parts (1n2u) 11828 | -4/Factory | Build established: Scavenger-Mutant 11996 | -4/Factory | Lost 9 parts (1p4n2u2w) 12099 | -4/Factory | Core integrity fell below 50% 12136 | -4/Factory | Discovered new exit (range 9) 12237 | -4/Factory | Core integrity fell below 20% 12259 | -4/Factory | Destroyed by P-70 Sage with Tesla Rifle Last Messages --------------- 12191_ Slug penetrates Neutrino Reactor. 12193_ Penetrated by Slug. 12194_ ALERT: Hostiles spotted, dispatching reinforcements to Terminal F018. 12202_ Acquired Spear. 12229_ Acquired Adv. Coolant Injector. 12233_ Slug penetrates Wall. 12233_ Penetrated by Slug. 12234_ Assembly Bed disabled. 12236_ Penetrated by Slug. 12236_ Slug penetrates Wall. 12249_ System corrupted: Matter fused (-6). 12249_ Acquired Enh. Optical Array. 12254_ Nuclear Reactor explodes. 12254_ K-01 Serf destroyed. 12254_ Nuclear Reactor explodes. 12254_ Field Propulsion Array destroyed. 12254_ Imp. VSS Leg destroyed. 12255_ Lgt. Angular Momentum Engine destroyed. 12256_ K-01 Serf collects debris. Map ----- +----------------------------------------------------+ | ########?????????????????????????????????????????? | | ?????????????????????????????????????????????????? | | ?????????????????????????????????????????????????? | | ???###???????????????????????????????????????????? | | ??? ???????????????????????????????????????????? | | "??" "???????????????????????????????????????????? | | "?"" """??#??????????????????????????????????????? | | """" """" #??????????????????????????????????????? | | """" """" #??????????????????????????????????????? | | """" """ ##############?????????????????????????? | | """" """" # #?????????????????????????? | | # #?????????????????????????? | | # ##????????????????????????? | | # !! #????????????????????????? | | # !! ##???????????????????????? | | [ #???????????????????????? | | ####?????????????????????? | | ########## #?????????????????????? | | ########### p " #?????????????????????? | | u #?????????????????????? | | ########### * # ########???????????????? | | #?????????# % * # # #???????????????? | | #?????????### k### # """ #???????????????? | | #???????????### + """ #???????????????? | | #?????????????# k # """ !#???????????????? | | #?????????????# @# #???????????????? | | #?????????????# #? #???????????????? | | #?????????????+ ##### #?######???????????????? | | #?????????????# ????# #??????????????????????? | | #?????????????# ????# #??????????????????????? | | #?????????????# ????#+#??????????????????????? | | ??????????????# ?????????????????????????????? | | ??????????????# ?????????????????????????????? | | ??????????????+ ?????????????????????????????? | | ??????????????# ?????????????????????????????? | | ??????????????# ?????????????????????????????? | | ??????????????# ?????????????????????????????? | | ?????????????????????????????????????????????????? | | ?????????????????????????????????????????????????? | | ?????????????????????????????????????????????????? | | ?????????????????????????????????????????????????? | | ?????????????????????????????????????????????????? | | ?????????????????????????????????????????????????? | | ?????????????????????????????????????????????????? | | ?????????????????????????????????????????????????? | | ?????????????????????????????????????????????????? | | ?????????????????????????????????????????????????? | | ?????????????????????????????????????????????????? | | ?????????????????????????????????????????????????? | | ?????????????????????????????????????????????????? | +----------------------------------------------------+ Best States ------------- Heat Dissipation 81 Coolant Potential 100 Energy Generation 35 Energy Capacity 530 Matter Stores 300 Matter Capacity 300 Sight Range 22 Robot Scan Range 18 Terrain Scan Range 30 Terrain Scan Density 1210 Jamming Range 14 Power Amplification 20 Additional Mass Support 9 Armor Coverage 450 Resistance: EM 25 Propulsion Shielding 66 Point Defense Rating 160 Melee Speed Boost 20 Evasion (%) 62 Targeting Accuracy 10 Melee Accuracy 8 Target Analysis 6 Recoil Reduction 1 Offensive Hacking 10 Trap Extractor Capacity 6 Item Schematics ----------------- Fusion Compressor | -6/Factory | Extracted Imp. Salvage Targeting Computer | -6/Factory | Extracted Imp. Light Armor Plating | -6/Factory | Extracted System Shield | -6/Factory | Extracted Shock Absorption System | -6/Factory | Extracted Lyr. Medium Armor Plating | -6/Factory | Extracted Imp. Reaction Control System | -6/Factory | Extracted Hvy. Mace | -6/Factory | Extracted Com. Matter Pod | -6/Factory | Extracted Target Analyzer | -6/Factory | Extracted Robot Schematics ------------------ None Fabricated ------------ Nothing Repaired ---------- Nothing Alien Tech Used ----------------- Core Expander Achievements -------------- None Challenges ------------ None Game ------ Seed RagnarokForceConstruct Manual? 0 Play Time 02:25:32 Cumulative 137.8 hours Start 2025.07.07 @ 01:25:22 End 2025.07.07 @ 04:53:47 Sessions 1 Manual Loads 0 Difficulty Rogue Special Mode None Game No. 138 Rogue 136 Adventurer 2 Explorer 0 Win Type - Total 0 Types 0/0/0/0/0/0/0/0/0/0 Lore% 60 Gallery% 55 Achievement% 44 Wizard Run 0 Options --------- Layout 2 ASCII 0 Keyboard 1 Movement Vi Keybinds 0 Fullscreen 2 Font 48/Smallcaps Map View 50x66 Zoom Use 0% Tactical HUD 1 Map Filters NONE Filters NONE Steam 1 RUN: b6ce67f0-e0f3-4ebc-8e96-2aaff1a50828